Cogmind - Beta 13 @@@ ROGUE MODE // 2024.05.07 @ 21:31:02 Player: SlyFyer Result: Destroyed by G-47 Trooper with Particle Gun Performance ------------- Evolutions (2) 1000 Regions Visited (7) 1400 Robots Destroyed (98) 490 Value Destroyed (2155) 2155 Prototype IDs (26) 520 Alien Tech Used (0) 0 Bonus (431) 431 TOTAL SCORE: 5996 Bonus ------- High Alert Combat Kills 71 Follower Combat Kills 60 Aligned with FarCom 300 Cogmind --------- Core Integrity 0/550 Matter 212/300 Energy 30/100 System Corruption 0% Temperature Cool (9) Movement Rolling (130) Ox2 Location -8/Materials Parts ------- > --- POWER (1) -------- (None) > --- PROPULSION (2) --- Compact Wheel > --- UTILITY (6) ------ High-capacity Storage Unit > --- WEAPON (2) ------- Mini Grenade Launcher > --- INVENTORY (20) --- VTOL Module Improved Flight Unit Improved Flight Unit Improved Flight Unit Cesium-ion Thruster Cooling System Medium Storage Unit High-capacity Matter Pod (200) Weight Redist. System Trap Scanner Experimental Sensor Array Improved Signal Interpreter Improved Propulsion Shielding PSU Rigger Plasma Cutter Peak State ------------ > --- POWER ------------ Cooled Ion Engine > --- PROPULSION ------- Wheel Wheel > --- UTILITY ---------- High-capacity Storage Unit Experimental Sensor Array ECM Suite Improved Propulsion Shielding Hacking Suite > --- WEAPON ----------- Heavy Assault Rifle Mining Laser > --- INVENTORY -------- Wheel VTOL Module Improved Flight Unit Improved Flight Unit Improved Flight Unit Cesium-ion Thruster Cooling System Medium Storage Unit High-capacity Matter Pod Weight Redist. System Improved Propulsion Shielding PSU Rigger Heavy Assault Rifle Minigun Slug Cannon Mini Grenade Launcher Mini Grenade Launcher Plasma Cutter [Rating: 29] Favorites ----------- Power Cooled Ion Engine Engine Cooled Ion Engine Propulsion Compact Wheel Wheel Compact Wheel Flight Unit Improved Flight Unit Utility High-capacity Storage Unit Device Seismic Detector Storage High-capacity Storage Unit Processor Targeting Computer Hackware Hacking Suite Protection Improved Propulsion Shielding Weapon Heavy Assault Rifle Energy Gun Medium Laser Ballistic Gun Heavy Assault Rifle Ballistic Cannon Slug Cannon Launcher Grenade Launcher Special Weapon Mining Laser Build | -11 -10 -10 -9 -9 -9 -8 -8 ------- Run | Yrd Mat Min Mat Min Exi Min Mat Slots Evolved 4 | . . . 2 . . . 2 Power . | . . . . . . . . Propulsion . | . . . . . . . . Utility 4 | . . . 2 . . . 2 Weapon . | . . . . . . . . Parts Attached 69 | 7 13 1 21 7 . 4 16 Power 4 | 1 1 . 1 . . 1 . Engine 4 | 1 1 . 1 . . 1 . Core . | . . . . . . . . Reactor . | . . . . . . . . Propulsion 18 | 2 4 . 4 2 . . 6 Treads . | . . . . . . . . Leg . | . . . . . . . . Wheel 17 | 2 3 . 4 2 . . 6 Hover . | . . . . . . . . Flight 1 | . 1 . . . . . . Utility 16 | 2 2 1 7 1 . . 3 Device 5 | 1 . . 1 . . . 3 Storage 3 | 1 1 1 . . . . . Processor 2 | . 1 . 1 . . . . Hackware 1 | . . . 1 . . . . Protection 5 | . . . 4 1 . . . Artifact . | . . . . . . . . Weapon 31 | 2 6 . 9 4 . 3 7 Energy Gun 1 | 1 . . . . . . . Energy Cannon . | . . . . . . . . Ballistic Gun 17 | 1 5 . 6 2 . . 3 Ballistic Cannon 3 | . . . . 1 . 1 1 Launcher 4 | . 1 . . 1 . . 2 Special Weapon 6 | . . . 3 . . 2 1 Impact Weapon . | . . . . . . . . Slashing Weapon . | . . . . . . . . Piercing Weapon . | . . . . . . . . Special Melee Weapon . | . . . . . . . . Unidentified Prototypes 3 | . 2 . . . . . 1 Parts Lost 34 | . 3 . 6 5 . 2 18 Power 2 | . . . . . . 1 1 Propulsion 13 | . 1 . 3 2 . . 7 Utility 8 | . 1 . 2 1 . 1 3 Weapon 11 | . 1 . 1 2 . . 7 Highest Loss Streak 8 | . 2 . 1 5 . 2 8 To Critical Strikes . | . . . . . . . . Average Slot Usage (%) 92 | . 96 100 94 95 100 92 67 Engine 11 | . 14 14 11 11 11 11 8 Wheel 21 | . 27 28 20 18 22 22 13 Device 3 | . 7 . 4 . . . 6 Storage 11 | . 14 14 11 11 11 11 9 Processor 7 | . 3 14 11 11 11 4 . Hackware 5 | . . . 2 11 11 11 8 Protection 7 | . . . 11 10 11 11 3 Ballistic Gun 19 | . 27 28 21 15 11 11 14 Ballistic Cannon 2 | . . . . 6 11 7 2 Naked Turns . | . . . . . . . . Heaviest Build 60 | 14 32 52 59 60 60 60 58 Greatest Support 32 | 32 32 32 32 26 20 20 26 Greatest Overweight (x) 19 | 1 1 1 3 19 2 2 19 Average Overweight (x) 1 | . . . 1 2 2 2 2 Largest Inventory Capacity 20 | 8 15 20 20 20 20 20 20 Average Capacity 18 | 7 13 19 20 20 20 20 20 Most Carried 20 | 5 15 16 20 20 20 20 20 Average Carried 17 | 1 11 15 19 18 19 19 19 Final Capacity 20 | 8 15 20 20 20 20 20 20 Final Carried 20 | 2 15 16 20 20 20 19 15 Class Distribution -------------------- 98% | Mutant Dominant Class ---------------- Mutant | -10/Materials Mutant | -10/Mines Mutant | -9/Materials Mutant | -9/Mines Mutant | -9/Exiles Mutant | -8/Mines Mutant | -8/Materials Resources | -11 -10 -10 -9 -9 -9 -8 -8 ----------- Run | Yrd Mat Min Mat Min Exi Min Mat Matter Collected 2686 | 225 725 110 921 180 . 93 432 Remotely . | . . . . . . . . Salvage Created 3629 | 67 827 70 1912 32 . 104 617 Parts 228 | 5 48 10 122 5 . 5 33 Haulers Intercepted 8 | . 2 . 5 . . . 1 Recyclers Shooed 13 | . 4 . 6 . . . 3 Parts Field Recycled . | . . . . . . . . Retrieved Matter . | . . . . . . . . Parts Self-Destructed . | . . . . . . . . Prevented . | . . . . . . . . Kills | -11 -10 -10 -9 -9 -9 -8 -8 ------- Run | Yrd Mat Min Mat Min Exi Min Mat Combat Hostiles Destroyed 51 | . 10 5 23 3 . 3 7 Guns 48 | . 10 5 23 2 . 2 6 Cannons 3 | . . . . 1 . 1 1 Classes Destroyed 14 | 2 4 1 4 1 . 1 1 Worker 11 | . . . 9 1 . . 1 Builder 4 | . . . 1 . . . 3 Tunneler 4 | 1 1 . 1 . . 1 . Hauler 8 | . 2 . 5 . . . 1 Recycler 12 | 1 4 . 4 . . . 3 Operator 2 | . 1 . 1 . . . . Watcher 7 | . 3 . 3 . . . 1 Swarmer 8 | . . 5 2 1 . . . Grunt 25 | . 10 . 10 . . 2 3 Brawler 2 | . . . 2 . . . . Duelist 1 | . . . . . . 1 . Sentry 11 | . . . 9 . . . 2 Hunter 2 | . . . . . . . 2 Assembled 1 | . . . . 1 . . . Best Kill Streak 7 | 1 4 2 7 1 . 3 3 Combat Bots Only 6 | . 2 2 6 1 . 3 2 Max Kills in Single Turn 2 | 1 2 1 2 1 . 1 2 Gunslinging . | . . . . . . . . Exploded . | . . . . . . . . Melee . | . . . . . . . . Uniques/NPCs Destroyed 1 | . . . . 1 . . . YI-UF0 (-9/Mines) Combat | -11 -10 -10 -9 -9 -9 -8 -8 -------- Run | Yrd Mat Min Mat Min Exi Min Mat Hostile Shots Fired 307 | . 43 31 69 37 . 24 103 Missed 84 | . 10 14 17 13 . 8 22 Damage Taken 3829 | . 449 155 757 695 . 240 1533 Core 1055 | . 94 33 134 214 . 29 551 Absorbed by Shields . | . . . . . . . . Redirected to Shielding 112 | . . . 10 46 . 37 19 Core Remaining (%) 51 | 100 . 49 . . . 5 . Volleys Fired 317 | 5 73 13 132 19 . 14 61 Largest 2 | 2 2 2 2 2 . 2 2 Hottest 120 | 70 43 40 100 71 . 100 120 Shots Fired 604 | 10 139 26 251 37 . 25 116 Gun 553 | 10 135 26 244 29 . 11 98 Cannon 31 | . . . . 8 . 11 12 Launcher 5 | . 4 . . . . . 1 Special 15 | . . . 7 . . 3 5 Kinetic 579 | 5 135 26 244 37 . 22 110 Thermal 20 | 5 . . 7 . . 3 5 Explosive 5 | . 4 . . . . . 1 Electromagnetic . | . . . . . . . . Robot Hit Streak 16 | 3 16 3 14 3 . 8 14 Robot Miss Streak 9 | 2 6 9 7 4 . 1 3 Penetration Max . | . . . . . . . . Secondary Targets 7 | . . 1 5 . . . 1 Max Gunslinging Chain 1 | . . 1 1 . . . 1 Shots Hit Robots 358 | 5 83 8 159 14 . 18 71 Core Hits 157 | 3 35 6 70 5 . 7 31 Critical Kills 1 | . . . . . . . 1 Critical Parts Destroyed 2 | . 1 . . . . . 1 Critical Strikes 3 | . 1 . . . . . 2 Destroy 3 | . 1 . . . . . 2 Melee Attacks . | . . . . . . . . Impact . | . . . . . . . . Slashing . | . . . . . . . . Piercing . | . . . . . . . . Sneak Attacks . | . . . . . . . . Combat Hostiles . | . . . . . . . . Follow-up Attacks . | . . . . . . . . Damage Inflicted 6106 | 58 1099 107 2372 234 . 450 1786 Guns 4957 | 58 1099 107 2372 173 . 161 987 Cannons 535 | . . . . 61 . 265 209 Explosions 566 | . . . . . . . 566 Melee . | . . . . . . . . Ramming . | . . . . . . . . Kinetic 5444 | 10 1099 107 2372 234 . 426 1196 Thermal 450 | 48 . . . . . 24 378 Explosive 212 | . . . . . . . 212 Electromagnetic . | . . . . . . . . Impact . | . . . . . . . . Slashing . | . . . . . . . . Piercing . | . . . . . . . . Highest Corruption 4 | . 4 4 . . . . . Average Corruption 3 | . 3 4 . . . . . Corruption Purged . | . . . . . . . . Corruption Blocked . | . . . . . . . . Effects 40 | . 24 16 . . . . . Message Errors 7 | . 6 1 . . . . . Matter Fused 11 | . 7 4 . . . . . Heat Flow Errors 2 | . 2 . . . . . . Energy Discharges 7 | . 3 4 . . . . . Data Loss (minor) 4 | . 2 2 . . . . . Data Loss (major) 2 | . 1 1 . . . . . Misfires 1 | . . 1 . . . . . Alerts 3 | . 1 2 . . . . . Weapon Failures 3 | . 2 1 . . . . . Overload Shots . | . . . . . . . . Overflow Damage 216 | . . . . . . 6 210 Projectiles 10 | . . . . . . 6 4 Explosions 206 | . . . . . . . 206 Melee . | . . . . . . . . Knockbacks 7 | . . . . . . 4 3 Impact . | . . . . . . . . Kinetic 7 | . . . . . . 4 3 Secondary . | . . . . . . . . Self-Inflicted Damage 256 | . . . . . . . 256 Shots 3 | . . . . . . . 3 Rammed . | . . . . . . . . Targets Rammed . | . . . . . . . . Kicked . | . . . . . . . . Crushed . | . . . . . . . . Highest Temperature 217 | 50 217 . 21 . . 77 54 Average Temperature 25 | 25 42 . 7 . . 39 13 Received Heat Transfer 1260 | . 252 9 306 . . 162 531 Siege Activations . | . . . . . . . . Robots Corrupted . | . . . . . . . . Combat Hostiles . | . . . . . . . . Parts Fried . | . . . . . . . . Impact Corruptions . | . . . . . . . . Robots Melted . | . . . . . . . . Combat Hostiles . | . . . . . . . . Parts Melted 1 | 1 . . . . . . . Heat Transferred 448 | 148 . . . . . 50 250 Parts Sabotaged . | . . . . . . . . Parts Stolen . | . . . . . . . . Parts Stripped . | . . . . . . . . Power Chain Reactions . | . . . . . . . . Alert | -11 -10 -10 -9 -9 -9 -8 -8 ------- Run | Yrd Mat Min Mat Min Exi Min Mat Peak Influence 524 | 10 212 137 524 239 . 55 171 Initial 174 | . 6 . 29 174 . . 1 Average 137 | 4 70 28 350 79 . 16 74 Maximum Alert Level 2 | . 1 . 2 1 . . . Low Security (%) 73 | 100 99 100 13 80 . 100 100 Level 1 16 | . 1 . 48 19 . . . Level 2 10 | . . . 37 . . . . Level 3 . | . . . . . . . . Level 4 . | . . . . . . . . Level 5 . | . . . . . . . . High Security . | . . . . . . . . Max Security . | . . . . . . . . Squads Dispatched 7 | . 2 . 2 . . . 3 Investigation 3 | . . . 2 . . . 1 Extermination . | . . . . . . . . Reinforcement 4 | . 2 . . . . . 2 Assault . | . . . . . . . . Garrison . | . . . . . . . . Intercept . | . . . . . . . . Searches Triggered . | . . . . . . . . Construction Impeded 1 | . . . . . . . 1 Haulers Reinforced . | . . . . . . . . Active Scanning Responses . | . . . . . . . . Cargo Convoy Interrupts . | . . . . . . . . Stealth | -11 -10 -10 -9 -9 -9 -8 -8 --------- Run | Yrd Mat Min Mat Min Exi Min Mat Distress Signals 7 | . 3 . 2 1 . . 1 Communications Jammed . | . . . . . . . . Distress Signals . | . . . . . . . . Times Spotted 102 | . 19 10 37 7 . 3 26 Peak Tracking Total 8 | . 3 3 8 3 . 3 4 Tactical Retreats 5 | . . . 1 1 . . 3 Traps | -11 -10 -10 -9 -9 -9 -8 -8 ------- Run | Yrd Mat Min Mat Min Exi Min Mat Traps Triggered 5 | . 4 . . . . . 1 Indirectly . | . . . . . . . . Trap Hack Attempts . | . . . . . . . . Triggered . | . . . . . . . . Disarmed . | . . . . . . . . Reprogrammed . | . . . . . . . . Reused . | . . . . . . . . Traps Extracted . | . . . . . . . . Installed . | . . . . . . . . Triggered . | . . . . . . . . Machines | -11 -10 -10 -9 -9 -9 -8 -8 ---------- Run | Yrd Mat Min Mat Min Exi Min Mat Machines Disabled 8 | . 1 . 3 . . . 4 Max in Single Turn 3 | . 1 . 1 . . . 3 Machines Repaired . | . . . . . . . . Machines Dismantled . | . . . . . . . . Machines Sabotaged . | . . . . . . . . Overloaded Fab Kills . | . . . . . . . . Hacking | -11 -10 -10 -9 -9 -9 -8 -8 --------- Run | Yrd Mat Min Mat Min Exi Min Mat Machines Accessed 15 | . 3 . 7 1 2 . 2 Terminals 11 | . 3 . 5 1 . . 2 Fabricators . | . . . . . . . . Repair Stations . | . . . . . . . . Recycling Units 1 | . . . 1 . . . . Scanalyzers 1 | . . . 1 . . . . Garrison Access . | . . . . . . . . Total Hacks 35 | . 6 . 19 2 4 . 4 Successful 23 | . 4 . 11 1 4 . 3 Failed 12 | . 2 . 8 1 . . 1 Catastrophic 3 | . . . 2 1 . . . Database Lockouts . | . . . . . . . . Manual 24 | . 5 . 15 2 1 . 1 Terminals 26 | . 6 . 14 2 . . 4 Fabricators . | . . . . . . . . Repair Stations . | . . . . . . . . Recycling Units 1 | . . . 1 . . . . Scanalyzers 4 | . . . 4 . . . . Garrison Access . | . . . . . . . . Terminal Hacks 10 | . 2 . 1 1 4 . 2 Record 4 | . . . . . 3 . 1 Level Access Points 1 | . . . . 1 . . . Terminal Index 3 | . 1 . 1 . . . 1 Hauler Manifests 1 | . 1 . . . . . . Derelict Proto ID Bank 1 | . . . . . 1 . . Fabricator Hacks . | . . . . . . . . Repair Station Hacks . | . . . . . . . . Recycling Unit Hacks . | . . . . . . . . Scanalyzer 4 | . . . 4 . . . . Insert Component 2 | . . . 2 . . . . Analyze 2 | . . . 2 . . . . Garrison Access Hacks . | . . . . . . . . Unauthorized Hacks 9 | . 2 . 6 . . . 1 Terminals 8 | . 2 . 5 . . . 1 Assimilate 2 | . 1 . 1 . . . . Botnet 4 | . . . 3 . . . 1 Operators 2 | . 1 . 1 . . . . Fabricators . | . . . . . . . . Repair Stations . | . . . . . . . . Recycling Units 1 | . . . 1 . . . . Tunnel 1 | . . . 1 . . . . Scanalyzers . | . . . . . . . . Garrison Access . | . . . . . . . . Data Cores Recovered . | . . . . . . . . Used . | . . . . . . . . Hacking Detections 7 | . 1 . 5 1 . . . Full Trace Events 2 | . . . 2 . . . . Feedback Events . | . . . . . . . . Feedback Blocked . | . . . . . . . . Robot Schematics Acquired . | . . . . . . . . Robots Built . | . . . . . . . . Authchips . | . . . . . . . . Time . | . . . . . . . . Total Robot Build Rating . | . . . . . . . . Part Schematics Acquired 2 | . . . 2 . . . . Parts Built . | . . . . . . . . Authchips . | . . . . . . . . Time . | . . . . . . . . Total Part Build Rating . | . . . . . . . . Parts Repaired . | . . . . . . . . Time . | . . . . . . . . Parts Recycled . | . . . . . . . . Recycled Matter . | . . . . . . . . Retrieved Matter . | . . . . . . . . Retrieved Components . | . . . . . . . . Parts Scanalyzed 2 | . . . 2 . . . . Part Schematics Acquired 2 | . . . 2 . . . . Parts Damaged . | . . . . . . . . Bothacking | -11 -10 -10 -9 -9 -9 -8 -8 ------------ Run | Yrd Mat Min Mat Min Exi Min Mat Used RIF Installer . | . . . . . . . . Robots Hacked . | . . . . . . . . Non-combat . | . . . . . . . . Combat . | . . . . . . . . Robot Hacks Applied . | . . . . . . . . Relay Couplers Released . | . . . . . . . . Fabnet Peak Effective % . | . . . . . . . . Robots Rewired . | . . . . . . . . Allies Hacked . | . . . . . . . . Hacks Repelled . | . . . . . . . . Allies | -11 -10 -10 -9 -9 -9 -8 -8 -------- Run | Yrd Mat Min Mat Min Exi Min Mat Total Allies 3 | . . 3 . . . . . Largest Group 3 | . . 3 2 . . . . Highest-Rated Group 40 | . . 40 32 . . . . Highest-Rated Ally 16 | . . 16 16 . . . . Total Orders . | . . . . . . . . Ally Attacks 37 | . . 18 19 . . . . Total Damage 282 | . . 124 158 . . . . Kills 7 | . . 4 3 . . . . Allies Corrupted . | . . . . . . . . Allies Melted . | . . . . . . . . Intel | -11 -10 -10 -9 -9 -9 -8 -8 ------- Run | Yrd Mat Min Mat Min Exi Min Mat Robot Analysis Total . | . . . . . . . . Derelict Logs Recovered 4 | . . 2 . 2 . . . Drone Launches . | . . . . . . . . Drone Recoveries . | . . . . . . . . Exploration | -11 -10 -10 -9 -9 -9 -8 -8 ------------- Run | Yrd Mat Min Mat Min Exi Min Mat Turns Passed 6584 | 86 1300 609 1652 1163 427 598 749 Spaces Moved 4360 | 65 1005 495 962 752 386 341 354 Core 41 | 16 . . . 19 . . 6 Treads . | . . . . . . . . Legs . | . . . . . . . . Wheels 4319 | 49 1005 495 962 733 386 341 348 Hover . | . . . . . . . . Flight . | . . . . . . . . Fastest Speed 50 | 50 100 100 115 110 110 110 110 Average Speed 116 | 88 100 112 118 137 110 110 132 Slowest Speed 1000 | 100 115 115 145 1000 110 110 1000 Overloaded Moves . | . . . . . . . . Propulsion Burnouts . | . . . . . . . . Robots Hopped . | . . . . . . . . Cave-ins Triggered . | . . . . . . . . Exploration Rate (%) 64 | 5 92 88 76 98 71 61 25 Regions Visited 7 Branch Regions 4 Pre-discovered Areas 4 | . . 1 1 2 . . . Known Exits Taken 1 | . . . . . . 1 . Unknown Exits Taken 6 | 1 1 1 1 1 1 . . Scrap Searched 4 | . . 1 . 2 . 1 . Spaces Dug 11 | . . . 7 . . 2 2 Terrain Destroyed 89 | . 24 . 7 4 . 6 48 Melee . | . . . . . . . . Projectile 24 | . . . 7 4 . 6 7 AOE 65 | . 24 . . . . . 41 Terrain Rammed . | . . . . . . . . Walls Destroyed . | . . . . . . . . Machines Disabled . | . . . . . . . . Actions | -11 -10 -10 -9 -9 -9 -8 -8 --------- Run | Yrd Mat Min Mat Min Exi Min Mat Total 5255 | 84 1162 521 1204 849 389 532 514 Wait 416 | . 34 11 71 55 . 172 73 Move 4353 | 64 1004 494 961 751 385 340 354 Hop . | . . . . . . . . Pick Up 68 | 8 26 1 11 11 2 1 8 Fast Attach 10 | 1 . . 8 . . . 1 Attach 31 | 6 3 . 2 5 . 1 14 Detach 2 | . . . . . . . 2 Swap 28 | . 10 1 11 2 . 3 1 Drop 30 | . 12 1 8 6 2 1 . Fire 317 | 5 73 13 132 19 . 14 61 Melee . | . . . . . . . . Ram . | . . . . . . . . Kick . | . . . . . . . . Crush . | . . . . . . . . Escape Stasis . | . . . . . . . . Rewire . | . . . . . . . . Trap . | . . . . . . . . Miscellaneous . | . . . . . . . . Route ------- -11/Scrapyard -10/Materials (discovered 4 exits: *Mat x3 / [*Min]) -10/Mines (discovered 2 exits: *Mat x2) -9/Materials (discovered 3 exits: *Mat x2 / *Min) -9/Mines (discovered 3 exits: *Mat x2 / *Exi) -9/Exiles -8/Mines -8/Materials (discovered 1 exit: Fac) History --------- Turn | Location | Event 14 | -11/Scrapyard | Discovered new exit (range 16) 87 | -11/Scrapyard | Entered Materials 171 | -10/Materials | Discovered new exit (range 11) 337 | -10/Materials | Build established: Mutant 527 | -10/Materials | Discovered new exit (range 9) 839 | -10/Materials | Discovered new exit (range 8) 1172 | -10/Materials | Discovered new exit (range 10) 1387 | -10/Materials | Entered Mines 1455 | -10/Mines | Assisted by bots powering up and referring to "LRC-V3" 1463 | -10/Mines | Met a Derelict bent on vengeance 1685 | -10/Mines | Discovered new exit (range 7) 1712 | -10/Mines | Discovered new exit (range 9) 1808 | -10/Mines | Learned location of Zion (-6) 1839 | -10/Mines | Found a hidden stash of uninstalled traps 1880 | -10/Mines | Core integrity fell below 50% 1930 | -10/Mines | Learned Materials trap positions 1996 | -10/Mines | Entered Materials 1996 | -9/Materials | Accompanied by 2 allies 1996 | -9/Materials | Evolved 2 slots: Utility x2 1997 | -9/Materials | Loaded intel: 8 trap records 2561 | -9/Materials | Discovered new exit (range 16) 3045 | -9/Materials | Discovered new exit (range 5) 3390 | -9/Materials | Discovered new exit (range 12) 3648 | -9/Materials | Entered Mines 3690 | -9/Mines | Joined a pair of Derelicts in attacking an 0b10 outpost 3724 | -9/Mines | Assembled infested the area 3779 | -9/Mines | A weapon hastily lodged in a ceiling crevice suddenly fell to the ground 3830 | -9/Mines | Found a damaged Exp. Sensor Array with a note attached 3833 | -9/Mines | Found Prototype Device 3869 | -9/Mines | Discovered new exit (range 9) 4163 | -9/Mines | Core integrity fell below 50% 4173 | -9/Mines | Core integrity fell below 20% 4175 | -9/Mines | Destroyed YI-UF0 4199 | -9/Mines | Lost 5 parts (2n1u2w) 4384 | -9/Mines | Discovered new exit (range 10) 4424 | -9/Mines | Learned location of Storage (-8) 4543 | -9/Mines | Identified exit to Materials 4581 | -9/Mines | Learned location of 1 exit from Materials 4803 | -9/Mines | Deemed a non-threat by the Exiles lab entrance 4805 | -9/Mines | Discovered new exit (range 5) 4811 | -9/Mines | Entered Exiles 4850 | -9/Exiles | Met 8R-AWN 4875 | -9/Exiles | Met EX-HEX 4923 | -9/Exiles | Met EX-BIN 4943 | -9/Exiles | Aligned with FarCom system 4945 | -9/Exiles | Given EX-Vault access code 4978 | -9/Exiles | Opened EX-Vault 5025 | -9/Exiles | Found PSU Rigger 5052 | -9/Exiles | Warned to stay clear of 0b10 Research branches 5089 | -9/Exiles | Met EX-DEC 5223 | -9/Exiles | Discovered new exit (range 11) 5238 | -9/Exiles | Left Exiles lab with PSU Rigger 5238 | -9/Exiles | Entered Mines 5831 | -8/Mines | Discovered exit to Materials (range 5) 5836 | -8/Mines | Entered Materials 5836 | -8/Materials | Evolved 2 slots: Utility x2 5837 | -8/Materials | Identified exit to Factory 5861 | -8/Materials | Identified Exp. Sensor Array 6396 | -8/Materials | Lost 5 parts (2n1u2w) 6517 | -8/Materials | Core integrity fell below 50% 6571 | -8/Materials | Core integrity fell below 20% 6585 | -8/Materials | Destroyed by G-47 Trooper with Particle Gun Last Messages --------------- 06569_ U-05 Engineer lays Concrete. 06572_ Mining Laser destroyed. 06572_ U-05 Engineer lays Concrete. 06573_ U-05 Engineer builds a Wall. 06573_ U-05 Engineer lays Concrete. 06574_ Assault Rifle destroyed. 06574_ U-05 Engineer lays Concrete. 06576_ Wheel destroyed. 06576_ U-05 Engineer builds a Wall. 06576_ Wheel destroyed. 06577_ U-05 Engineer builds a Wall. 06578_ Hacking Suite destroyed. 06580_ U-05 Engineer builds a Wall. 06583_ Destroyed Welding Torch. 06583_ Mni. Grenade Launcher destroyed. 06583_ Destroyed Mni. Grenade Launcher. 06583_ U-05 Engineer destroyed. 06583_ ALERT: Construction progress impeded, dispatching reinforcements to local area. 06584_ U-05 Engineer lays Concrete. Map ----- +----------------------------------------------------+ | ?????????????????????????????????????????????????? | | ?????????????????????????????????????????????????? | | ?????????????????????????????????????????????????? | | ?????????????????????????????????????????????????? | | ?????????????????????????????????????????????????? | | ?????????????????????????????????????????????????? | | ?????????????????#######?????????????????????????? | | ????????????????? #?????????????????????????? | | ?????????????????? #?????????????????????????? | | ??????????????????? ^ #?????????????????????????? | | ???????????????????# ##########????????????????? | | ???????????????????# # #????????????????? | | ???????????????????# ^ # #????????????????? | | ???????????????????# # #????????????????? | | ???????????????????# # !#????????????????? | | ???????????????????# + #????????????????? | | ?# ############ # #????????????????? | | ?# # #???? #??????????? | | ?# #####+###### # #??? #??????????? | | ?????????# # # #?? #w?????????? | | ?????????# # ##########? # #????????? | | ?????????# # %# ###### + #????????? | | ?????????# # ! *%= # #??????????? | | ?????????# # g g # #??????????? | | ??? ?????# # g a ###### ??????? | | ?? ???# #u @ + w ??????? | | ?# ^??# # u ###### ?????? | | ######+##### + # #?????????????? | | # % ###?????????????? | | #u = u##??????????????? | | ##########;#??????????????? | | " ###??????????????? | | """ """ """ """ # """ ##????????????????? | | ???"" """ """ """ # """ T #?????????????????? | | """ """ """ ""% # """ " #?????????????????? | | # #?????????????????? | | % + """ #?????????????????? | | ???### # """ #?????????????????? | | ?????##+######+##### # """ #?????????????????? | | ?????# # # #?????????????????? | | ?????# """ """ % # # #?????????????????? | | ?????# """%""" "" # # #?????????????????? | | ?????# """ %! """# #########?????????????????? | | ?????# % % | %S"# #?????????????????????????? | | ??#### %% ! # #?????????????????????????? | | ? ############### % #?????????????????????????? | | """ #?# ! ####### #?????????????????????????? | | """ #?# #?????????????????????????? | | """ #?# [ #?????????????????????????? | | """ #?# *%[ #?????????????????????????? | +----------------------------------------------------+ Best States ------------- Heat Dissipation 31 Energy Generation 14 Energy Capacity 280 Matter Stores 300 Matter Capacity 300 Sight Range 16 Terrain Scan Density 10 ECM Strength 1 Armor Coverage 150 Propulsion Shielding 66 Evasion (%) 50 Targeting Accuracy 5 Offensive Hacking 10 Item Schematics ----------------- Plasma Cutter | -9/Materials | Scanalyzed Cooling System | -9/Materials | Scanalyzed Robot Schematics ------------------ None Fabricated ------------ Nothing Alien Tech Used ----------------- None Achievements -------------- None Challenges ------------ None Game ------ Seed StormFissionTriangulator Manual? 0 Play Time 00:48:49 Cumulative 89.0 hours Start 2024.05.07 @ 09:32:07 End 2024.05.07 @ 21:31:02 Sessions 5 Manual Loads 0 Difficulty Rogue Special Mode None Game No. 47 Rogue 17 Adventurer 30 Explorer 0 Win Type - Total 3 Types 2/1/0/0/0/0/0/0/0 Lore% 51 Gallery% 67 Achievement% 62 Wizard Run 0 Options --------- Layout 0 ASCII 0 Keyboard 0 Movement Arrows Keybinds 0 Fullscreen 1 Font 18/SmallcapsGlow Map View 76x50 Zoom Use 0% Tactical HUD 1 Map Filters NONE Filters NONE Steam 1 RUN: cf153907-6124-46fb-966e-d3add803ee0b